[Event "NJSK 2026 Jeugd A"]
[Site "Helmond, Netherlands"]
[Date "2026.04.30"]
[Round "6.2"]
[White "Kazarjan, Gachatur"]
[Black "Terlouw, Wouter"]
[Result "0-1"]
[TimeControl "90min/40moves + 30min + 30sec/move"]
[WhiteTitle "-"]
[BlackTitle "-"]
[WhiteFideId "1068750"]
[BlackFideId "1087401"]
[WhiteElo "2272"]
[BlackElo "2272"]

1. e4 {[%clk 01:30:57]} {[%emt 00:00:02]} c5 {[%clk 01:30:54]} {[%emt
00:00:06]} 2. Nf3 {[%clk 01:31:23]} {[%emt 00:00:05]} Nc6 {[%clk 01:31:19]}
{[%emt 00:00:04]} 3. Nc3 {[%clk 01:31:50]} {[%emt 00:00:03]} e5 {[%clk
01:31:45]} {[%emt 00:00:05]} 4. Bc4 {[%clk 01:32:16]} {[%emt 00:00:04]} Be7
{[%clk 01:32:11]} {[%emt 00:00:07]} 5. d3 {[%clk 01:32:43]} d6 {[%clk
01:32:35]} {[%emt 00:00:05]} 6. Nd2 {[%clk 01:32:22]} {[%emt 00:00:50]} Nf6
{[%clk 01:33:01]} {[%emt 00:00:05]} 7. Nf1 {[%clk 01:32:48]} {[%emt 00:00:04]}
a6 {[%clk 01:32:18]} {[%emt 00:01:13]} 8. a4 {[%clk 01:33:13]} {[%emt
00:00:05]} Bg4 {[%clk 01:32:44]} {[%emt 00:00:04]} 9. f3 {[%clk 01:31:45]}
{[%emt 00:01:57]} Be6 {[%clk 01:32:04]} {[%emt 00:01:10]} 10. Ne3 {[%clk
01:32:07]} {[%emt 00:00:08]} Nb4 {[%clk 01:32:31]} {[%emt 00:00:04]} 11. O-O
{[%clk 01:29:47]} {[%emt 00:02:50]} d5 {[%clk 01:26:58]} {[%emt 00:06:03]} 12.
exd5 {[%clk 01:29:14]} {[%emt 00:01:03]} Nbxd5 {[%clk 01:27:19]} {[%emt
00:00:09]} 13. Nexd5 {[%clk 01:28:38]} {[%emt 00:01:06]} Nxd5 {[%clk 01:27:35]}
{[%emt 00:00:13]} 14. Nxd5 {[%clk 01:22:47]} {[%emt 00:06:19]} Bxd5 {[%clk
01:27:56]} {[%emt 00:00:09]} 15. Bxd5 {[%clk 01:21:49]} {[%emt 00:01:29]} Qxd5
{[%clk 01:27:52]} {[%emt 00:00:33]} 16. Qe2 {[%clk 01:21:16]} {[%emt 00:01:03]}
O-O {[%clk 01:06:40]} {[%emt 00:21:42]} 17. a5 {[%clk 01:14:45]} {[%emt
00:07:02]} Bd6 {[%clk 01:01:01]} {[%emt 00:06:08]} 18. Ra4 {[%clk 01:13:27]}
{[%emt 00:01:49]} Rfe8 {[%clk 01:00:30]} {[%emt 00:01:01]} 19. b3 {[%clk
01:13:24]} {[%emt 00:00:34]} Rac8 {[%clk 00:59:45]} {[%emt 00:01:14]} 20. Bd2
{[%clk 01:12:32]} {[%emt 00:01:22]} Re6 {[%clk 00:58:21]} {[%emt 00:01:54]} 21.
Bc3 {[%clk 01:08:57]} {[%emt 00:04:06]} Rce8 {[%clk 00:48:21]} {[%emt
00:10:31]} 22. Rc4 {[%clk 00:55:52]} {[%emt 00:13:34]} R8e7 {[%clk 00:40:29]}
{[%emt 00:08:21]} 23. Qf2 {[%clk 00:51:12]} {[%emt 00:05:10]} Rc7 {[%clk
00:38:38]} {[%emt 00:02:21]} 24. Re1 {[%clk 00:51:18]} {[%emt 00:00:24]} Rc6
{[%clk 00:36:41]} {[%emt 00:02:25]} 25. Kf1 {[%clk 00:41:52]} {[%emt 00:09:58]}
Bc7 {[%clk 00:35:09]} {[%emt 00:02:02]} 26. Ke2 {[%clk 00:38:49]} {[%emt
00:03:34]} Bd8 {[%clk 00:29:37]} {[%emt 00:06:02]} 27. Kd1 {[%clk 00:36:47]}
{[%emt 00:02:31]} Bg5 {[%clk 00:28:18]} {[%emt 00:01:49]} 28. Rce4 {[%clk
00:36:46]} {[%emt 00:00:32]} f6 {[%clk 00:27:52]} {[%emt 00:00:56]} 29. g3
{[%clk 00:34:06]} {[%emt 00:03:10]} Bh6 {[%clk 00:26:14]} {[%emt 00:02:07]} 30.
f4 {[%clk 00:32:10]} {[%emt 00:02:27]} exf4 {[%clk 00:25:43]} {[%emt 00:01:00]}
31. Bd2 {[%clk 00:26:58]} {[%emt 00:05:43]} Rxe4 {[%clk 00:19:24]} {[%emt
00:06:50]} 32. Rxe4 {[%clk 00:26:32]} {[%emt 00:00:55]} Re6 {[%clk 00:18:06]}
{[%emt 00:01:48]} 33. Rxe6 {[%clk 00:24:55]} {[%emt 00:02:07]} Qxe6 {[%clk
00:18:29]} {[%emt 00:00:06]} 34. gxf4 {[%clk 00:25:20]} {[%emt 00:00:05]} Qd5
{[%clk 00:17:06]} {[%emt 00:01:53]} 35. Kc1 {[%clk 00:24:20]} {[%emt 00:01:30]}
Qd4 {[%clk 00:17:03]} {[%emt 00:00:34]} 36. Qxd4 {[%clk 00:22:52]} {[%emt
00:01:59]} cxd4 {[%clk 00:17:04]} {[%emt 00:00:28]} 37. Kd1 {[%clk 00:16:08]}
{[%emt 00:07:13]} Kf7 {[%clk 00:13:31]} {[%emt 00:04:03]} 38. c4 {[%clk
00:14:27]} {[%emt 00:02:11]} dxc3 {[%clk 00:13:39]} {[%emt 00:00:23]} 39. Be3
{[%clk 00:14:52]} {[%emt 00:00:05]} g5 {[%clk 00:03:06]} {[%emt 00:11:02]} 40.
Bd4 {[%clk 00:12:52]} {[%emt 00:02:30]} gxf4 {[%clk 00:02:42]} {[%emt
00:00:54]} 41. Bxc3 {[%clk 00:13:17]} {[%emt 00:00:06]} f3 {[%clk 00:02:52]}
{[%emt 00:00:20]} 42. Bd4 {[%clk 00:13:41]} {[%emt 00:00:06]} Bf4 {[%clk
00:03:06]} {[%emt 00:00:15]} 43. h3 {[%clk 00:13:49]} {[%emt 00:00:23]} Ke6
{[%emt 00:09:56]} 44. Ke1 {[%clk 00:43:44]} {[%emt 00:00:33]} Bg3+ {[%clk
00:24:07]} {[%emt 00:00:05]} 45. Kd2 {[%clk 00:43:43]} {[%emt 00:00:31]} f5
{[%clk 00:24:00]} {[%emt 00:00:37]} 46. Ke3 {[%clk 00:44:08]} {[%emt 00:00:05]}
Be1 {[%clk 00:24:14]} {[%emt 00:00:11]} 47. Kxf3 {[%clk 00:43:12]} {[%emt
00:01:31]} Bxa5 {[%clk 00:24:37]} {[%emt 00:00:07]} 48. Kg3 {[%clk 00:43:00]}
{[%emt 00:00:43]} Bd2 {[%clk 00:24:05]} {[%emt 00:01:01]} 49. Kf3 {[%clk
00:43:02]} {[%emt 00:00:28]} b5 {[%clk 00:24:09]} {[%emt 00:00:26]} 50. Ke2
{[%clk 00:43:07]} {[%emt 00:00:25]} Bb4 {[%clk 00:24:25]} {[%emt 00:00:11]} 51.
Kd1 {[%clk 00:42:21]} {[%emt 00:01:18]} a5 {[%clk 00:23:57]} {[%emt 00:00:59]}
0-1

[Event "NJSK 2026 Jeugd A"]
[Site "Helmond, Netherlands"]
[Date "2026.04.30"]
[Round "6.3"]
[White "Madularea, David"]
[Black "Ten Dam, Bram"]
[Result "0-1"]
[TimeControl "90min/40moves + 30min + 30sec/move"]
[WhiteTitle "-"]
[BlackTitle "-"]
[WhiteFideId "1070215"]
[BlackFideId "40104877"]
[WhiteElo "2261"]
[BlackElo "2363"]

1. e4 {[%clk 01:30:56]} {[%emt 00:00:03]} c6 {[%clk 01:30:51]} {[%emt
00:00:10]} 2. d4 {[%clk 01:31:20]} {[%emt 00:00:05]} d5 {[%clk 01:31:17]}
{[%emt 00:00:05]} 3. e5 {[%clk 01:31:47]} {[%emt 00:00:02]} a6 {[%clk
01:31:43]} {[%emt 00:00:06]} 4. c3 {[%clk 01:24:53]} {[%emt 00:07:22]} Bf5
{[%clk 01:30:34]} {[%emt 00:01:38]} 5. Bd3 {[%clk 01:24:30]} {[%emt 00:00:53]}
Bxd3 {[%clk 01:30:50]} {[%emt 00:00:15]} 6. Qxd3 {[%clk 01:24:56]} {[%emt
00:00:03]} e6 {[%clk 01:31:12]} {[%emt 00:00:08]} 7. Ne2 {[%clk 01:25:20]}
{[%emt 00:00:06]} Ne7 {[%clk 01:25:59]} {[%emt 00:05:43]} 8. O-O {[%clk
01:24:33]} {[%emt 00:01:18]} Nd7 {[%clk 01:25:12]} {[%emt 00:01:16]} 9. Nd2
{[%clk 01:17:26]} {[%emt 00:07:36]} c5 {[%clk 01:21:09]} {[%emt 00:04:34]} 10.
f4 {[%clk 01:13:38]} {[%emt 00:04:17]} h5 {[%clk 01:19:22]} {[%emt 00:02:18]}
11. Qh3 {[%clk 01:08:24]} {[%emt 00:05:44]} Nf5 {[%clk 01:16:09]} {[%emt
00:03:43]} 12. Nf3 {[%clk 00:54:54]} {[%emt 00:13:58]} g6 {[%clk 01:10:55]}
{[%emt 00:05:45]} 13. Ng5 {[%clk 00:50:18]} {[%emt 00:05:06]} Be7 {[%clk
00:53:10]} {[%emt 00:18:15]} 14. g4 {[%clk 00:46:18]} {[%emt 00:04:30]} Nh6
{[%clk 00:51:41]} {[%emt 00:02:00]} 15. gxh5 {[%clk 00:44:55]} {[%emt
00:01:53]} Nf5 {[%clk 00:52:04]} {[%emt 00:00:06]} 16. Ng3 {[%clk 00:44:39]}
{[%emt 00:00:45]} Nxg3 {[%clk 00:50:48]} {[%emt 00:01:46]} 17. Qxg3 {[%clk
00:44:16]} {[%emt 00:00:53]} Bxg5 {[%clk 00:50:43]} {[%emt 00:00:35]} 18. fxg5
{[%clk 00:43:07]} {[%emt 00:01:39]} Rxh5 {[%clk 00:50:51]} {[%emt 00:00:22]} 19.
Be3 {[%clk 00:41:59]} {[%emt 00:01:38]} cxd4 {[%clk 00:38:12]} {[%emt
00:13:09]} 20. cxd4 {[%clk 00:42:24]} {[%emt 00:00:05]} Nb6 {[%clk 00:38:27]}
{[%emt 00:00:16]} 21. Rf6 {[%clk 00:34:52]} {[%emt 00:08:01]} Rc8 {[%clk
00:28:14]} {[%emt 00:10:40]} 22. Raf1 {[%clk 00:34:04]} {[%emt 00:01:21]} Rh7
{[%clk 00:26:52]} {[%emt 00:01:53]} 23. Bd2 {[%clk 00:29:06]} {[%emt 00:05:29]}
Nd7 {[%clk 00:23:31]} {[%emt 00:03:50]} 24. R6f2 {[%clk 00:17:02]} {[%emt
00:12:34]} Nb8 {[%clk 00:22:31]} {[%emt 00:01:30]} 25. h4 {[%clk 00:13:09]}
{[%emt 00:04:23]} Nc6 {[%clk 00:15:45]} {[%emt 00:07:17]} 26. h5 {[%clk
00:10:19]} {[%emt 00:03:19]} Ne7 {[%clk 00:15:51]} {[%emt 00:00:24]} 27. hxg6
{[%clk 00:09:34]} {[%emt 00:01:15]} Nxg6 {[%clk 00:16:13]} {[%emt 00:00:08]} 28.
Rf6 {[%clk 00:08:21]} {[%emt 00:01:43]} Rc4 {[%clk 00:12:20]} {[%emt 00:04:23]}
29. Bc3 {[%clk 00:04:27]} {[%emt 00:04:24]} Qe7 {[%clk 00:07:49]} {[%emt
00:05:01]} 30. Qf2 {[%clk 00:04:27]} {[%emt 00:00:29]} Nxe5 {[%clk 00:06:57]}
{[%emt 00:01:23]} 31. Qg3 {[%clk 00:03:25]} {[%emt 00:01:31]} Nd7 {[%clk
00:05:20]} {[%emt 00:02:09]} 32. Rh6 {[%clk 00:03:41]} {[%emt 00:00:13]} Rg7
{[%clk 00:03:55]} {[%emt 00:01:56]} 33. Rh8+ {[%clk 00:03:07]} {[%emt
00:01:03]} Nf8 {[%clk 00:04:20]} {[%emt 00:00:05]} 34. Bd2 {[%clk 00:01:48]}
{[%emt 00:01:49]} Rc8 {[%clk 00:02:16]} {[%emt 00:02:34]} 35. a3 {[%clk
00:01:00]} {[%emt 00:01:18]} a5 {[%clk 00:01:15]} {[%emt 00:01:31]} 36. Rf3
{[%clk 00:00:43]} {[%emt 00:00:46]} Qc7 {[%clk 00:00:45]} {[%emt 00:01:01]} 37.
Bf4 {[%clk 00:00:32]} {[%emt 00:00:42]} Qc4 {[%clk 00:00:39]} {[%emt 00:00:35]}
38. Qf2 {[%clk 00:00:34]} {[%emt 00:00:28]} Rc6 {[%clk 00:00:34]} {[%emt
00:00:36]} 39. Kh1 {[%clk 00:00:32]} {[%emt 00:00:32]} Rh7+ {[%clk 00:00:37]}
{[%emt 00:00:27]} 40. Rxh7 {[%clk 00:00:56]} {[%emt 00:00:06]} Nxh7 {[%clk
00:01:06]} 41. g6 {[%clk 00:21:46]} {[%emt 00:09:40]} fxg6 {[%clk 00:28:48]}
{[%emt 00:02:47]} 42. Rh3 {[%clk 00:19:35]} {[%emt 00:02:41]} g5 {[%clk
00:21:45]} {[%emt 00:07:33]} 43. Bd2 {[%clk 00:19:07]} {[%emt 00:00:58]} Qc2
{[%clk 00:21:22]} {[%emt 00:00:53]} 44. Qe3 {[%clk 00:15:52]} {[%emt 00:03:45]}
Qd1+ {[%clk 00:16:05]} {[%emt 00:05:47]} 45. Kh2 {[%clk 00:14:59]} {[%emt
00:01:22]} Nf6 {[%clk 00:07:21]} {[%emt 00:09:15]} 46. Qxg5 {[%clk 00:12:29]}
{[%emt 00:03:00]} Kf7 {[%clk 00:02:49]} {[%emt 00:05:03]} 47. Qf4 {[%clk
00:06:09]} {[%emt 00:06:50]} Qe2+ {[%clk 00:01:23]} {[%emt 00:01:56]} 48. Kg1
{[%clk 00:06:19]} {[%emt 00:00:19]} Qe4 {[%clk 00:00:51]} {[%emt 00:01:02]} 49.
Qxe4 {[%clk 00:03:45]} {[%emt 00:03:05]} Nxe4 {[%clk 00:01:19]} {[%emt
00:00:01]} 50. Rf3+ {[%clk 00:04:09]} {[%emt 00:00:06]} Ke8 {[%clk 00:01:32]}
{[%emt 00:00:18]} 51. Bxa5 {[%clk 00:04:20]} {[%emt 00:00:19]} Rc1+ {[%clk
00:01:37]} {[%emt 00:00:24]} 52. Rf1 {[%clk 00:03:51]} {[%emt 00:00:59]} Rc2
{[%clk 00:02:06]} {[%emt 00:00:02]} 53. b3 {[%clk 00:01:15]} {[%emt 00:03:06]}
Ng3 {[%clk 00:01:42]} {[%emt 00:00:54]} 54. Re1 {[%clk 00:00:53]} {[%emt
00:00:51]} Kd7 {[%clk 00:02:06]} {[%emt 00:00:06]} 55. Bb6 {[%clk 00:01:17]}
{[%emt 00:00:05]} Rc3 {[%clk 00:02:26]} {[%emt 00:00:11]} 56. a4 {[%clk
00:01:02]} {[%emt 00:00:45]} Rxb3 {[%clk 00:02:37]} {[%emt 00:00:19]} 57. a5
{[%clk 00:01:16]} {[%emt 00:00:16]} Ne4 {[%clk 00:02:45]} {[%emt 00:00:22]} 58.
Rc1 {[%clk 00:01:26]} {[%emt 00:00:19]} Rc3 {[%clk 00:02:30]} {[%emt 00:00:46]}
59. Rf1 {[%clk 00:01:45]} {[%emt 00:00:10]} Nd6 {[%clk 00:02:44]} {[%emt
00:00:17]} 60. Rf6 {[%clk 00:01:46]} {[%emt 00:00:29]} Re3 {[%clk 00:02:11]}
{[%emt 00:01:03]} 61. Rh6 {[%clk 00:01:39]} {[%emt 00:00:36]} Kc6 {[%clk
00:01:23]} {[%emt 00:01:19]} 62. Rh7 {[%clk 00:02:03]} {[%emt 00:00:05]} Nb5
{[%clk 00:00:53]} {[%emt 00:01:01]} 63. Rh8 {[%clk 00:01:50]} {[%emt 00:00:43]}
Rg3+ {[%clk 00:00:53]} {[%emt 00:00:30]} 64. Kf2 {[%clk 00:02:12]} {[%emt
00:00:06]} Rg7 {[%clk 00:00:45]} {[%emt 00:00:40]} 65. Rc8+ {[%clk 00:02:10]}
{[%emt 00:00:32]} Kd7 {[%clk 00:00:40]} {[%emt 00:00:36]} 66. Rc5 {[%clk
00:02:02]} {[%emt 00:00:37]} Rf7+ {[%clk 00:00:58]} {[%emt 00:00:12]} 67. Ke1
{[%clk 00:01:35]} {[%emt 00:00:57]} Nd6 {[%clk 00:01:14]} {[%emt 00:00:14]} 68.
Kd1 {[%clk 00:01:24]} {[%emt 00:00:40]} Ne8 {[%clk 00:00:35]} {[%emt 00:01:10]}
69. Rc3 {[%emt 00:00:54]} Rf2 {[%clk 00:00:36]} 70. Ke1 {[%clk 00:01:34]}
{[%emt 00:00:24]} Rf7 {[%clk 00:00:34]} {[%emt 00:00:32]} 71. Ke2 {[%clk
00:01:43]} {[%emt 00:00:21]} Nd6 {[%clk 00:00:40]} {[%emt 00:00:24]} 72. Rc5
{[%clk 00:01:56]} {[%emt 00:00:17]} Ke8 {[%clk 00:00:57]} {[%emt 00:00:14]} 73.
Ke1 {[%clk 00:01:54]} {[%emt 00:00:32]} Rd7 {[%clk 00:01:17]} {[%emt 00:00:09]}
74. Kd1 {[%clk 00:01:43]} {[%emt 00:00:40]} Kf7 {[%clk 00:01:26]} {[%emt
00:00:22]} 75. Rc3 {[%clk 00:01:19]} {[%emt 00:00:54]} Nc4 {[%clk 00:01:38]}
{[%emt 00:00:18]} 76. Rf3+ {[%clk 00:01:23]} {[%emt 00:00:26]} Kg6 {[%clk
00:01:24]} {[%emt 00:00:45]} 77. Rf2 {[%clk 00:00:31]} {[%emt 00:01:21]} Nxb6
{[%clk 00:01:20]} {[%emt 00:00:34]} 78. axb6 {[%clk 00:00:57]} {[%emt
00:00:04]} Rd6 {[%clk 00:01:48]} {[%emt 00:00:02]} 79. Rb2 {[%clk 00:01:08]}
{[%emt 00:00:19]} Kf5 {[%clk 00:02:14]} {[%emt 00:00:04]} 80. Kd2 {[%clk
00:01:26]} {[%emt 00:00:12]} Ke4 {[%clk 00:02:38]} {[%emt 00:00:05]} 81. Rb4
{[%clk 00:01:46]} {[%emt 00:00:10]} Rc6 {[%clk 00:03:02]} {[%emt 00:00:06]} 82.
Ke2 {[%clk 00:01:57]} {[%emt 00:00:20]} Rc2+ {[%clk 00:03:19]} {[%emt
00:00:14]} 83. Kd1 {[%clk 00:02:23]} {[%emt 00:00:04]} Rc4 {[%clk 00:03:41]}
{[%emt 00:00:08]} 84. Rb2 {[%clk 00:02:37]} {[%emt 00:00:15]} Kxd4 {[%clk
00:03:14]} {[%emt 00:00:57]} 85. Re2 {[%clk 00:02:55]} {[%emt 00:00:12]} e5
{[%clk 00:03:29]} {[%emt 00:00:15]} 86. Rh2 {[%clk 00:03:21]} {[%emt 00:00:03]}
Rb4 {[%clk 00:03:23]} {[%emt 00:00:36]} 87. Rh6 {[%clk 00:03:42]} {[%emt
00:00:10]} Kc5 {[%clk 00:03:48]} {[%emt 00:00:05]} 88. Re6 {[%clk 00:04:08]}
{[%emt 00:00:05]} e4 {[%clk 00:04:14]} {[%emt 00:00:04]} 0-1

[Event "NJSK 2026 Jeugd A"]
[Site "Helmond, Netherlands"]
[Date "2026.04.30"]
[Round "6.4"]
[White "Smeets, Kobe"]
[Black "Arnold, Rhys"]
[Result "1/2-1/2"]
[TimeControl "90min/40moves + 30min + 30sec/move"]
[WhiteTitle "-"]
[BlackTitle "-"]
[WhiteFideId "1063910"]
[BlackFideId "1068849"]
[WhiteElo "2315"]
[BlackElo "2315"]

1. e4 {[%clk 01:30:57]} {[%emt 00:00:02]} c5 {[%clk 01:30:45]} {[%emt
00:00:17]} 2. Nf3 {[%clk 01:31:15]} {[%emt 00:00:14]} a6 {[%clk 01:31:09]}
{[%emt 00:00:05]} 3. g3 {[%clk 01:30:54]} {[%emt 00:00:49]} Nc6 {[%clk
01:31:15]} {[%emt 00:00:24]} 4. Bg2 {[%clk 01:30:46]} {[%emt 00:00:38]} e5
{[%clk 01:30:56]} {[%emt 00:00:49]} 5. O-O {[%clk 01:29:56]} {[%emt 00:01:20]}
g6 {[%clk 01:30:23]} {[%emt 00:01:04]} 6. Nc3 {[%clk 01:16:41]} {[%emt
00:13:44]} Bg7 {[%clk 01:27:18]} {[%emt 00:03:34]} 7. d3 {[%clk 01:15:04]}
{[%emt 00:02:07]} Nge7 {[%clk 01:26:17]} {[%emt 00:01:29]} 8. Bg5 {[%clk
01:09:51]} {[%emt 00:05:46]} h6 {[%clk 01:16:31]} {[%emt 00:10:16]} 9. Be3
{[%clk 01:10:14]} {[%emt 00:00:06]} Nd4 {[%clk 01:15:23]} {[%emt 00:01:38]} 10.
Qd2 {[%clk 01:09:01]} {[%emt 00:01:43]} d6 {[%clk 01:12:12]} {[%emt 00:03:41]}
11. Ne1 {[%clk 01:07:52]} {[%emt 00:01:38]} h5 {[%clk 01:08:10]} {[%emt
00:04:33]} 12. h4 {[%clk 01:00:46]} {[%emt 00:07:36]} Bg4 {[%clk 01:02:14]}
{[%emt 00:06:25]} 13. a4 {[%clk 00:55:23]} {[%emt 00:05:54]} Qd7 {[%clk
01:00:44]} {[%emt 00:02:00]} 14. a5 {[%clk 00:52:12]} {[%emt 00:03:42]} Rd8
{[%clk 00:57:07]} {[%emt 00:04:06]} 15. Kh2 {[%clk 00:41:54]} {[%emt 00:10:47]}
O-O {[%clk 00:54:47]} {[%emt 00:02:50]} 16. Rb1 {[%clk 00:40:35]} {[%emt
00:01:50]} Kh7 {[%clk 00:51:00]} {[%emt 00:04:17]} 17. b4 {[%clk 00:38:11]}
{[%emt 00:02:54]} cxb4 {[%clk 00:49:29]} {[%emt 00:02:01]} 18. Rxb4 {[%clk
00:38:19]} {[%emt 00:00:21]} Qc7 {[%clk 00:41:22]} {[%emt 00:08:38]} 19. Ra4
{[%clk 00:29:27]} {[%emt 00:09:22]} Rc8 {[%clk 00:40:08]} {[%emt 00:01:44]} 20.
Bxd4 {[%clk 00:24:58]} {[%emt 00:05:00]} exd4 {[%clk 00:40:01]} {[%emt
00:00:35]} 21. Ne2 {[%clk 00:25:13]} {[%emt 00:00:16]} Nc6 {[%clk 00:33:22]}
{[%emt 00:07:09]} 22. f3 {[%clk 00:17:44]} {[%emt 00:07:59]} Bd7 {[%clk
00:32:49]} {[%emt 00:01:02]} 23. Ra1 {[%clk 00:12:48]} {[%emt 00:05:26]} b6
{[%clk 00:25:28]} {[%emt 00:07:52]} 24. axb6 {[%clk 00:12:04]} {[%emt
00:01:14]} Qxb6 {[%clk 00:25:52]} {[%emt 00:00:05]} 25. Nf4 {[%clk 00:10:42]}
{[%emt 00:01:51]} a5 {[%clk 00:24:00]} {[%emt 00:02:24]} 26. Nd5 {[%clk
00:07:18]} {[%emt 00:03:54]} Qc5 {[%clk 00:23:57]} {[%emt 00:00:33]} 27. f4
{[%clk 00:06:30]} {[%emt 00:01:19]} Nb4 {[%clk 00:18:16]} {[%emt 00:06:10]} 28.
Nxb4 {[%clk 00:06:53]} {[%emt 00:00:07]} axb4 {[%clk 00:17:07]} {[%emt
00:01:39]} 29. Rb1 {[%clk 00:05:57]} {[%emt 00:01:25]} Rb8 {[%clk 00:16:11]}
{[%emt 00:01:27]} 30. Nf3 {[%clk 00:05:10]} {[%emt 00:01:17]} Ba4 {[%clk
00:14:16]} {[%emt 00:02:25]} 31. Rf2 {[%clk 00:04:45]} {[%emt 00:00:54]} Qc3
{[%clk 00:11:16]} {[%emt 00:03:31]} 32. Qe2 {[%clk 00:04:53]} {[%emt 00:00:22]}
Rbc8 {[%clk 00:11:02]} {[%emt 00:00:44]} 33. Ne1 {[%clk 00:05:03]} {[%emt
00:00:19]} Rc5 {[%clk 00:10:16]} {[%emt 00:01:16]} 34. Bh3 {[%clk 00:02:59]}
{[%emt 00:02:35]} Ra8 {[%clk 00:07:05]} {[%emt 00:03:41]} 35. Rg2 {[%clk
00:02:53]} {[%emt 00:00:36]} b3 {[%clk 00:03:19]} {[%emt 00:04:16]} 36. cxb3
{[%clk 00:03:22]} {[%emt 00:00:02]} Bxb3 {[%clk 00:03:44]} {[%emt 00:00:04]} 37.
Qb2 {[%clk 00:01:23]} {[%emt 00:02:28]} Qxb2 {[%clk 00:03:05]} {[%emt
00:01:09]} 38. Rgxb2 {[%clk 00:01:45]} {[%emt 00:00:08]} Ra2 {[%clk 00:00:50]}
{[%emt 00:02:46]} 39. Rxa2 {[%clk 00:02:07]} {[%emt 00:00:08]} Bxa2 {[%clk
00:01:18]} {[%emt 00:00:02]} 40. Rb2 {[%clk 00:02:14]} {[%emt 00:00:22]} Rc1
{[%clk 00:00:41]} {[%emt 00:01:08]} 41. Rxa2 {[%clk 00:25:53]} {[%emt
00:06:51]} Rxe1 {[%clk 00:30:58]} {[%emt 00:00:12]} 42. Bd7 {[%clk 00:25:47]}
{[%emt 00:00:36]} Rb1 {[%clk 00:28:30]} {[%emt 00:02:58]} 43. Bc6 {[%clk
00:23:33]} {[%emt 00:02:44]} Rb3 {[%clk 00:23:42]} {[%emt 00:05:19]} 44. Rd2
{[%clk 00:23:52]} {[%emt 00:00:10]} Rc3 {[%clk 00:22:39]} {[%emt 00:01:34]} 45.
Bd5 {[%clk 00:24:06]} {[%emt 00:00:15]} f6 {[%clk 00:21:13]} {[%emt 00:01:56]}
46. Bc4 {[%clk 00:23:49]} {[%emt 00:00:46]} g5 {[%clk 00:19:06]} {[%emt
00:02:39]} 47. hxg5 {[%clk 00:05:51]} {[%emt 00:18:27]} fxg5 {[%clk 00:19:19]}
{[%emt 00:00:17]} 48. Re2 {[%clk 00:04:51]} {[%emt 00:01:30]} gxf4 {[%clk
00:10:49]} {[%emt 00:09:01]} 49. gxf4 {[%clk 00:05:20]} {[%emt 00:00:01]} Bh6
{[%clk 00:09:58]} {[%emt 00:01:22]} 50. Kg3 {[%clk 00:05:40]} {[%emt 00:00:09]}
Rc1 {[%clk 00:09:36]} {[%emt 00:00:53]} 51. e5 {[%clk 00:02:54]} {[%emt
00:03:15]} dxe5 {[%clk 00:09:58]} {[%emt 00:00:08]} 52. fxe5 {[%clk 00:03:18]}
{[%emt 00:00:06]} Rg1+ {[%clk 00:09:00]} {[%emt 00:01:27]} 53. Kf3 {[%clk
00:03:26]} {[%emt 00:00:21]} Be3 {[%clk 00:05:03]} {[%emt 00:04:29]} 54. e6
{[%clk 00:03:50]} {[%emt 00:00:06]} Rg7 {[%clk 00:05:27]} {[%emt 00:00:06]} 55.
Rh2 {[%clk 00:01:31]} {[%emt 00:02:48]} Kh6 {[%clk 00:05:53]} {[%emt 00:00:06]}
56. Ke4 {[%clk 00:01:34]} {[%emt 00:00:26]} Rg4+ {[%clk 00:01:01]} {[%emt
00:05:23]} 57. Kf5 {[%clk 00:01:19]} {[%emt 00:00:44]} Rg7 {[%clk 00:01:06]}
{[%emt 00:00:25]} 58. Ke4 {[%emt 00:00:21]} Rg4+ {[%clk 00:01:33]} 59. Kf5
{[%clk 00:00:47]} {[%emt 00:01:15]} Rg7 {[%clk 00:01:17]} {[%emt 00:00:46]} 60.
Bb3 {[%clk 00:01:12]} {[%emt 00:00:04]} Rb7 {[%clk 00:01:34]} {[%emt 00:00:13]}
61. Bd5 {[%clk 00:01:05]} {[%emt 00:00:37]} Ra7 {[%clk 00:00:45]} {[%emt
00:01:19]} 62. Bf3 {[%clk 00:00:36]} {[%emt 00:00:59]} Ra5+ {[%clk 00:00:48]}
{[%emt 00:00:28]} 63. Ke4 {[%clk 00:00:57]} {[%emt 00:00:08]} Kg7 {[%clk
00:00:42]} {[%emt 00:00:37]} 64. Bxh5 {[%clk 00:01:07]} {[%emt 00:00:20]} Kf6
{[%clk 00:01:04]} {[%emt 00:00:08]} 65. Bg4 {[%clk 00:01:09]} {[%emt 00:00:26]}
Re5+ {[%clk 00:01:33]} {[%emt 00:00:02]} 66. Kf3 {[%clk 00:01:32]} {[%emt
00:00:08]} Bg5 {[%clk 00:00:44]} {[%emt 00:01:18]} 67. Rf2 {[%clk 00:00:59]}
{[%emt 00:01:02]} Ke7 {[%clk 00:00:36]} {[%emt 00:00:39]} 68. Kg2 {[%clk
00:01:20]} {[%emt 00:00:09]} Kd6 {[%clk 00:00:40]} {[%emt 00:00:26]} 69. Rf7
{[%clk 00:00:40]} {[%emt 00:01:10]} Be7 {[%clk 00:01:06]} {[%emt 00:00:04]} 70.
Bf5 {[%clk 00:00:44]} {[%emt 00:00:25]} Re3 {[%clk 00:00:59]} {[%emt 00:00:38]}
71. Kf2 {[%clk 00:00:48]} {[%emt 00:00:26]} Bh4+ {[%clk 00:01:21]} {[%emt
00:00:08]} 72. Kg2 {[%clk 00:01:17]} {[%emt 00:00:01]} Be7 {[%clk 00:01:46]}
{[%emt 00:00:05]} 73. Rh7 {[%clk 00:00:51]} {[%emt 00:00:56]} Re5 {[%clk
00:02:14]} {[%emt 00:00:02]} 74. Rh5 {[%clk 00:00:59]} {[%emt 00:00:23]} Re3
{[%clk 00:02:35]} {[%emt 00:00:08]} 75. Kf2 {[%clk 00:00:59]} {[%emt 00:00:30]}
Bf6 {[%clk 00:02:51]} {[%emt 00:00:14]} 1/2-1/2